[Event "Late-Titled-Tuesday-Blitz-June-25-2024"]
[Site "Chess.com"]
[Date "2024.06.25"]
[Round "8"]
[White "MoldyTofu"]
[Black "gabduschew"]
[Result "0-1"]
[WhiteElo "2052"]
[BlackElo "2400"]
[TimeControl "180+1"]
[EndTime "15:22:35 PDT"]
[Termination "gabduschew won by resignation"]

1. b3 {[%clk 0:03:00.9]} 1... d5 {[%clk 0:02:55.6]} 2. Bb2 {[%clk 0:03:00.7]}
2... Nf6 {[%clk 0:02:50.8]} 3. e3 {[%clk 0:03:01]} 3... c5 {[%clk 0:02:47.1]} 4.
d4 {[%clk 0:03:01.1]} 4... Nc6 {[%clk 0:02:36.3]} 5. Nf3 {[%clk 0:03:00]} 5...
Bg4 {[%clk 0:02:36.2]} 6. h3 {[%clk 0:02:58]} 6... Bh5 {[%clk 0:02:36.1]} 7. Be2
{[%clk 0:02:57.7]} 7... e6 {[%clk 0:02:35.6]} 8. Nbd2 {[%clk 0:02:56.6]} 8...
Bd6 {[%clk 0:02:31.6]} 9. O-O {[%clk 0:02:54.1]} 9... O-O {[%clk 0:02:28.3]} 10.
dxc5 {[%clk 0:02:52.5]} 10... Bxc5 {[%clk 0:02:27.5]} 11. Nd4 {[%clk 0:02:50.9]}
11... Bxd4 {[%clk 0:02:24.5]} 12. Bxd4 {[%clk 0:02:48.3]} 12... Nxd4 {[%clk
0:02:21]} 13. exd4 {[%clk 0:02:43.6]} 13... Bxe2 {[%clk 0:02:21.4]} 14. Qxe2
{[%clk 0:02:44.5]} 14... Rc8 {[%clk 0:02:18.6]} 15. Nf3 {[%clk 0:02:43.8]} 15...
Ne4 {[%clk 0:02:16.5]} 16. Ne5 {[%clk 0:02:37.9]} 16... Rc3 {[%clk 0:02:14]} 17.
Rfd1 {[%clk 0:02:36.4]} 17... Qc7 {[%clk 0:02:10.3]} 18. Rac1 {[%clk 0:02:36.6]}
18... Rc8 {[%clk 0:02:06.9]} 19. f3 {[%clk 0:02:30.3]} 19... Ng3 {[%clk
0:02:03.9]} 20. Qf2 {[%clk 0:02:29.8]} 20... Rxc2 {[%clk 0:01:55.5]} 21. Rxc2
{[%clk 0:02:25.2]} 21... Qxc2 {[%clk 0:01:55.3]} 22. Rd2 {[%clk 0:02:18.3]}
22... Qc1+ {[%clk 0:01:52.1]} 0-1

[Event "Late-Titled-Tuesday-Blitz-June-25-2024"]
[Site "Chess.com"]
[Date "2024.06.25"]
[Round "8"]
[White "zajka-molotok"]
[Black "Stanbad1"]
[Result "1-0"]
[WhiteElo "2566"]
[BlackElo "2722"]
[TimeControl "180+1"]
[EndTime "15:23:45 PDT"]
[Termination "zajka-molotok won by checkmate"]

1. e4 {[%clk 0:03:00.9]} 1... e6 {[%clk 0:02:59.1]} 2. d4 {[%clk 0:03:00]} 2...
d5 {[%clk 0:02:58.8]} 3. exd5 {[%clk 0:03:00]} 3... exd5 {[%clk 0:02:57.6]} 4.
Nf3 {[%clk 0:03:00.1]} 4... Bd6 {[%clk 0:02:56.3]} 5. Bd3 {[%clk 0:02:59.7]}
5... Nc6 {[%clk 0:02:56.1]} 6. c3 {[%clk 0:02:59]} 6... Nge7 {[%clk 0:02:51.3]}
7. Qc2 {[%clk 0:02:58.3]} 7... Bg4 {[%clk 0:02:50.2]} 8. Nbd2 {[%clk 0:02:57.4]}
8... Qd7 {[%clk 0:02:50.4]} 9. O-O {[%clk 0:02:56.6]} 9... f6 {[%clk 0:02:50.7]}
10. Re1 {[%clk 0:02:52.7]} 10... O-O-O {[%clk 0:02:50.4]} 11. b4 {[%clk
0:02:52.4]} 11... Rde8 {[%clk 0:02:49.8]} 12. b5 {[%clk 0:02:49]} 12... Nd8
{[%clk 0:02:49.8]} 13. a4 {[%clk 0:02:46]} 13... g5 {[%clk 0:02:48.2]} 14. a5
{[%clk 0:02:44.6]} 14... h5 {[%clk 0:02:43.1]} 15. b6 {[%clk 0:02:43.3]} 15...
a6 {[%clk 0:02:41.7]} 16. bxc7 {[%clk 0:02:40.6]} 16... Qxc7 {[%clk 0:02:42.6]}
17. Ba3 {[%clk 0:02:39.1]} 17... h4 {[%clk 0:02:38.8]} 18. Bxd6 {[%clk
0:02:36.8]} 18... Qxd6 {[%clk 0:02:38.3]} 19. c4 {[%clk 0:02:36.6]} 19... h3
{[%clk 0:02:37.8]} 20. cxd5+ {[%clk 0:02:23.6]} 20... Kb8 {[%clk 0:02:36.4]} 21.
Nc4 {[%clk 0:02:22.5]} 21... Qxd5 {[%clk 0:02:34.1]} 22. Be4 {[%clk 0:02:22.1]}
22... Qd7 {[%clk 0:02:31.4]} 23. Nb6 {[%clk 0:02:19.4]} 23... Qc7 {[%clk
0:02:29.5]} 24. Qxc7+ {[%clk 0:01:55.8]} 24... Kxc7 {[%clk 0:02:30.4]} 25. Rac1+
{[%clk 0:01:52.3]} 25... Kb8 {[%clk 0:02:29.9]} 26. d5 {[%clk 0:01:47.4]} 26...
Nf7 {[%clk 0:02:27.6]} 27. Nd4 {[%clk 0:01:36.2]} 27... hxg2 {[%clk 0:02:25.2]}
28. Bxg2 {[%clk 0:01:32.7]} 28... Nd6 {[%clk 0:02:23.9]} 29. Ne6 {[%clk
0:01:32.1]} 29... Ka7 {[%clk 0:02:11]} 30. Ng7 {[%clk 0:01:29.5]} 30... Nef5
{[%clk 0:02:01.4]} 31. Nxe8 {[%clk 0:01:27.9]} 31... Nxe8 {[%clk 0:02:02.3]} 32.
Rc8 {[%clk 0:01:23.1]} 32... Nfd6 {[%clk 0:01:58.1]} 33. Ra8# {[%clk 0:01:22.3]}
1-0

[Event "Late-Titled-Tuesday-Blitz-June-25-2024"]
[Site "Chess.com"]
[Date "2024.06.25"]
[Round "8"]
[White "ritanovikova"]
[Black "osielchesslover2011"]
[Result "0-1"]
[WhiteElo "2249"]
[BlackElo "2189"]
[TimeControl "180+1"]
[EndTime "15:23:46 PDT"]
[Termination "osielchesslover2011 won on time"]

1. e4 {[%clk 0:02:58.7]} 1... e5 {[%clk 0:02:58.8]} 2. Nf3 {[%clk 0:02:58.4]}
2... Nc6 {[%clk 0:02:59.4]} 3. Bc4 {[%clk 0:02:57.7]} 3... Nf6 {[%clk
0:02:59.4]} 4. Nc3 {[%clk 0:02:56.5]} 4... Bc5 {[%clk 0:02:58.7]} 5. d3 {[%clk
0:02:54.9]} 5... d6 {[%clk 0:02:59.1]} 6. h3 {[%clk 0:02:54.7]} 6... h6 {[%clk
0:02:59.1]} 7. a3 {[%clk 0:02:50.5]} 7... a6 {[%clk 0:02:58.7]} 8. O-O {[%clk
0:02:49.9]} 8... g5 {[%clk 0:02:58.3]} 9. Be3 {[%clk 0:02:48.8]} 9... g4 {[%clk
0:02:57]} 10. Bxc5 {[%clk 0:02:45.7]} 10... dxc5 {[%clk 0:02:56.7]} 11. hxg4
{[%clk 0:02:26.2]} 11... Bxg4 {[%clk 0:02:55.4]} 12. Nd5 {[%clk 0:02:21.2]}
12... Nd4 {[%clk 0:02:50.5]} 13. c3 {[%clk 0:02:14.9]} 13... Nxf3+ {[%clk
0:02:48]} 14. gxf3 {[%clk 0:02:15.8]} 14... Bh3 {[%clk 0:02:48.5]} 15. Re1
{[%clk 0:02:14.9]} 15... Nxd5 {[%clk 0:02:48.3]} 16. Bxd5 {[%clk 0:02:13.7]}
16... Qg5+ {[%clk 0:02:48.3]} 0-1

[Event "Late-Titled-Tuesday-Blitz-June-25-2024"]
[Site "Chess.com"]
[Date "2024.06.25"]
[Round "8"]
[White "Alex_Sahakyan2006"]
[Black "xasid81"]
[Result "0-1"]
[WhiteElo "2733"]
[BlackElo "2577"]
[TimeControl "180+1"]
[EndTime "15:23:58 PDT"]
[Termination "xasid81 won by resignation"]

1. e4 {[%clk 0:03:00.9]} 1... d5 {[%clk 0:02:57.6]} 2. exd5 {[%clk 0:03:00.6]}
2... Nf6 {[%clk 0:02:58]} 3. Nc3 {[%clk 0:03:00]} 3... Nxd5 {[%clk 0:02:57]} 4.
Qf3 {[%clk 0:03:00.1]} 4... e6 {[%clk 0:02:54]} 5. Bc4 {[%clk 0:02:59.8]} 5...
Nb6 {[%clk 0:02:51.8]} 6. Bb3 {[%clk 0:02:59.6]} 6... Nc6 {[%clk 0:02:52.4]} 7.
Nge2 {[%clk 0:02:59.9]} 7... Be7 {[%clk 0:02:48.4]} 8. d4 {[%clk 0:02:59.5]}
8... Nxd4 {[%clk 0:02:43.8]} 9. Nxd4 {[%clk 0:03:00.4]} 9... Qxd4 {[%clk
0:02:44]} 10. Be3 {[%clk 0:03:00.8]} 10... Qf6 {[%clk 0:02:40.6]} 11. Qg3 {[%clk
0:02:52.2]} 11... Bd6 {[%clk 0:02:32.9]} 12. Ne4 {[%clk 0:02:51.5]} 12... Bxg3
{[%clk 0:02:30.9]} 13. Nxf6+ {[%clk 0:02:51.4]} 13... gxf6 {[%clk 0:02:31.8]}
14. hxg3 {[%clk 0:02:52.1]} 14... Bd7 {[%clk 0:02:17.4]} 15. Rh6 {[%clk
0:02:51]} 15... Nd5 {[%clk 0:01:52.2]} 16. Bxd5 {[%clk 0:02:48.5]} 16... exd5
{[%clk 0:01:53.1]} 17. Rxf6 {[%clk 0:02:49]} 17... Be6 {[%clk 0:01:49.5]} 18.
Bd4 {[%clk 0:02:46.8]} 18... O-O-O {[%clk 0:01:48.2]} 19. Rh6 {[%clk 0:02:46]}
19... Rhe8 {[%clk 0:01:45.3]} 20. Kd2 {[%clk 0:02:39.2]} 20... Bf5 {[%clk
0:01:42.4]} 21. f3 {[%clk 0:02:39.4]} 21... Bg6 {[%clk 0:01:32.1]} 22. a4 {[%clk
0:02:35.2]} 22... b6 {[%clk 0:01:29.4]} 23. b4 {[%clk 0:02:32.5]} 23... Re6
{[%clk 0:01:27.6]} 24. Re1 {[%clk 0:02:21]} 24... Rxe1 {[%clk 0:01:25.8]} 25.
Kxe1 {[%clk 0:02:21.9]} 25... Bxc2 {[%clk 0:01:25.1]} 26. Kd2 {[%clk 0:02:22.6]}
26... Bg6 {[%clk 0:01:14.1]} 27. g4 {[%clk 0:02:22.7]} 27... Re8 {[%clk
0:01:13.4]} 28. Be3 {[%clk 0:02:17.6]} 28... Re6 {[%clk 0:01:08]} 29. f4 {[%clk
0:02:13.7]} 29... Be4 {[%clk 0:01:05.2]} 30. Rh2 {[%clk 0:02:13.4]} 30... Rg6
{[%clk 0:01:02.6]} 31. g5 {[%clk 0:02:13.5]} 31... Rc6 {[%clk 0:01:02.2]} 0-1

[Event "Late-Titled-Tuesday-Blitz-June-25-2024"]
[Site "Chess.com"]
[Date "2024.06.25"]
[Round "8"]
[White "bubeliang"]
[Black "theoneandonlydaaevik"]
[Result "1-0"]
[WhiteElo "2790"]
[BlackElo "2596"]
[TimeControl "180+1"]
[EndTime "15:24:13 PDT"]
[Termination "bubeliang won by resignation"]

1. e4 {[%clk 0:03:00.9]} 1... c5 {[%clk 0:02:57.1]} 2. c3 {[%clk 0:02:59.9]}
2... d5 {[%clk 0:02:56.8]} 3. exd5 {[%clk 0:02:59.6]} 3... Qxd5 {[%clk
0:02:57.7]} 4. d4 {[%clk 0:02:59.9]} 4... Nf6 {[%clk 0:02:57.9]} 5. Nf3 {[%clk
0:02:59.5]} 5... e6 {[%clk 0:02:57.9]} 6. Na3 {[%clk 0:02:58.7]} 6... Nc6 {[%clk
0:02:53.9]} 7. Be3 {[%clk 0:02:58.4]} 7... Ng4 {[%clk 0:02:54.1]} 8. Nc2 {[%clk
0:02:41.4]} 8... Be7 {[%clk 0:02:28.3]} 9. h3 {[%clk 0:02:35.8]} 9... cxd4
{[%clk 0:02:09]} 10. Bxd4 {[%clk 0:02:30.1]} 10... Nf6 {[%clk 0:02:01.5]} 11.
Bxf6 {[%clk 0:02:28.6]} 11... Qxd1+ {[%clk 0:02:01.3]} 12. Rxd1 {[%clk
0:02:29.5]} 12... Bxf6 {[%clk 0:02:01.8]} 13. Ncd4 {[%clk 0:02:24]} 13... Nxd4
{[%clk 0:01:58.1]} 14. Nxd4 {[%clk 0:02:23.3]} 14... Bd7 {[%clk 0:01:59]} 15.
Be2 {[%clk 0:02:22.7]} 15... Bxd4 {[%clk 0:01:58.5]} 16. Rxd4 {[%clk 0:02:22]}
16... Bc6 {[%clk 0:01:59.4]} 17. f3 {[%clk 0:02:19.1]} 17... Ke7 {[%clk
0:01:59.7]} 18. Kf2 {[%clk 0:02:18.5]} 18... e5 {[%clk 0:01:56]} 19. Rd2 {[%clk
0:02:17.8]} 19... f6 {[%clk 0:01:56.5]} 20. Rhd1 {[%clk 0:02:18]} 20... Rhd8
{[%clk 0:01:55.1]} 21. Ke3 {[%clk 0:02:17.3]} 21... g5 {[%clk 0:01:41.6]} 22.
Rxd8 {[%clk 0:02:14.5]} 22... Rxd8 {[%clk 0:01:41.1]} 23. Rxd8 {[%clk
0:02:15.4]} 23... Kxd8 {[%clk 0:01:42]} 24. Bd3 {[%clk 0:02:16.3]} 24... h5
{[%clk 0:01:41.6]} 25. Be4 {[%clk 0:02:11.7]} 25... Kd7 {[%clk 0:01:32.5]} 26.
Bxc6+ {[%clk 0:02:00.8]} 26... bxc6 {[%clk 0:01:32.8]} 27. Ke4 {[%clk
0:01:58.4]} 27... Ke6 {[%clk 0:01:32.8]} 28. g4 {[%clk 0:01:58.7]} 28... hxg4
{[%clk 0:01:23.3]} 29. hxg4 {[%clk 0:01:59.6]} 29... Ke7 {[%clk 0:01:12.2]} 30.
Kf5 {[%clk 0:01:55.4]} 30... Kf7 {[%clk 0:01:11.9]} 31. b4 {[%clk 0:01:55.2]}
31... Ke7 {[%clk 0:01:09.5]} 32. c4 {[%clk 0:01:55.5]} 32... a6 {[%clk
0:01:09.2]} 33. a4 {[%clk 0:01:55.3]} 33... Kf7 {[%clk 0:01:09.1]} 34. b5 {[%clk
0:01:55.3]} 34... cxb5 {[%clk 0:01:10]} 35. cxb5 {[%clk 0:01:55.4]} 1-0

[Event "Late-Titled-Tuesday-Blitz-June-25-2024"]
[Site "Chess.com"]
[Date "2024.06.25"]
[Round "8"]
[White "Sic_Transit_GM"]
[Black "mouseslips_are_the_best"]
[Result "1-0"]
[WhiteElo "2538"]
[BlackElo "2370"]
[TimeControl "180+1"]
[EndTime "15:24:19 PDT"]
[Termination "Sic_Transit_GM won by resignation"]

1. e4 {[%clk 0:02:53.2]} 1... e6 {[%clk 0:02:59.9]} 2. d4 {[%clk 0:02:52.9]}
2... d5 {[%clk 0:03:00.8]} 3. Nd2 {[%clk 0:02:52.5]} 3... c5 {[%clk 0:03:00.5]}
4. exd5 {[%clk 0:02:52.4]} 4... exd5 {[%clk 0:03:01.4]} 5. Bb5+ {[%clk
0:02:51.2]} 5... Nc6 {[%clk 0:03:01.4]} 6. Qe2+ {[%clk 0:02:50.5]} 6... Be7
{[%clk 0:03:00.4]} 7. dxc5 {[%clk 0:02:49.2]} 7... Nf6 {[%clk 0:03:00.2]} 8.
Ngf3 {[%clk 0:02:48.7]} 8... O-O {[%clk 0:03:00.2]} 9. O-O {[%clk 0:02:48.4]}
9... Bxc5 {[%clk 0:02:58.7]} 10. Nb3 {[%clk 0:02:48.7]} 10... Bb6 {[%clk
0:02:56.1]} 11. c3 {[%clk 0:02:49]} 11... Re8 {[%clk 0:02:50.1]} 12. Qd3 {[%clk
0:02:47]} 12... a6 {[%clk 0:02:50.1]} 13. Ba4 {[%clk 0:02:46.1]} 13... Bc7
{[%clk 0:02:46.7]} 14. Bg5 {[%clk 0:02:45.9]} 14... b5 {[%clk 0:02:43.8]} 15.
Bxb5 {[%clk 0:02:40.9]} 15... axb5 {[%clk 0:02:42.8]} 16. Qxb5 {[%clk
0:02:41.8]} 16... Qd6 {[%clk 0:02:36.5]} 17. Bxf6 {[%clk 0:02:39.2]} 17... gxf6
{[%clk 0:02:32.9]} 18. Nbd4 {[%clk 0:02:39]} 18... Nxd4 {[%clk 0:02:29.9]} 19.
Qxe8+ {[%clk 0:02:37.6]} 19... Kg7 {[%clk 0:02:29]} 20. cxd4 {[%clk 0:02:35.5]}
20... Bg4 {[%clk 0:02:20.5]} 21. Qxa8 {[%clk 0:02:30.6]} 21... Bxf3 {[%clk
0:02:20.6]} 22. g3 {[%clk 0:02:30]} 22... Qe6 {[%clk 0:02:15.4]} 23. Qa3 {[%clk
0:02:28.4]} 23... Qg4 {[%clk 0:02:05.9]} 24. Rfe1 {[%clk 0:02:18.5]} 24... h5
{[%clk 0:02:00.7]} 25. h3 {[%clk 0:02:09.8]} 25... Qf5 {[%clk 0:01:59.8]} 26.
Rac1 {[%clk 0:02:03.7]} 26... Bd6 {[%clk 0:01:55.4]} 27. Qe3 {[%clk 0:01:47.7]}
27... Be4 {[%clk 0:01:37.8]} 28. Kh2 {[%clk 0:01:47.7]} 28... h4 {[%clk
0:01:36.9]} 29. Rg1 {[%clk 0:01:48.1]} 29... Kh7 {[%clk 0:01:25.8]} 30. Rc6
{[%clk 0:01:45.8]} 30... Qd7 {[%clk 0:01:18.3]} 31. Rxd6 {[%clk 0:01:41.2]}
31... Qxd6 {[%clk 0:01:18.6]} 32. Qf4 {[%clk 0:01:41.6]} 32... Qxf4 {[%clk
0:01:14.9]} 33. gxf4 {[%clk 0:01:42.5]} 1-0

[Event "Late-Titled-Tuesday-Blitz-June-25-2024"]
[Site "Chess.com"]
[Date "2024.06.25"]
[Round "8"]
[White "h4parah5"]
[Black "Meri-Arabidze"]
[Result "0-1"]
[WhiteElo "2953"]
[BlackElo "2716"]
[TimeControl "180+1"]
[EndTime "15:24:42 PDT"]
[Termination "Meri-Arabidze won by resignation"]

1. Nf3 {[%clk 0:03:00.9]} 1... Nf6 {[%clk 0:02:57.6]} 2. c4 {[%clk 0:03:00.9]}
2... e6 {[%clk 0:02:56.2]} 3. b3 {[%clk 0:03:00.8]} 3... d5 {[%clk 0:02:56.4]}
4. Bb2 {[%clk 0:03:01.1]} 4... c5 {[%clk 0:02:56.4]} 5. cxd5 {[%clk 0:03:00.7]}
5... exd5 {[%clk 0:02:56.4]} 6. g3 {[%clk 0:03:00.6]} 6... Nc6 {[%clk
0:02:55.9]} 7. Bg2 {[%clk 0:03:00.4]} 7... Be7 {[%clk 0:02:55.8]} 8. O-O {[%clk
0:02:59.9]} 8... O-O {[%clk 0:02:54.5]} 9. d4 {[%clk 0:02:59.9]} 9... Bg4 {[%clk
0:02:52.9]} 10. dxc5 {[%clk 0:02:52.8]} 10... Bxc5 {[%clk 0:02:53.8]} 11. Nc3
{[%clk 0:02:52]} 11... a6 {[%clk 0:02:46.4]} 12. Rc1 {[%clk 0:02:50.2]} 12...
Ba7 {[%clk 0:02:45.7]} 13. h3 {[%clk 0:02:49.7]} 13... Bh5 {[%clk 0:02:42.3]}
14. e3 {[%clk 0:02:33.1]} 14... Re8 {[%clk 0:02:24.4]} 15. Ne2 {[%clk
0:02:30.4]} 15... Ne4 {[%clk 0:02:18.7]} 16. Nf4 {[%clk 0:02:28.6]} 16... Bxf3
{[%clk 0:01:54.7]} 17. Bxf3 {[%clk 0:02:18.8]} 17... d4 {[%clk 0:01:46.4]} 18.
Qc2 {[%clk 0:01:52.7]} 18... Nb4 {[%clk 0:01:13.1]} 19. Qb1 {[%clk 0:01:46.8]}
19... Nd2 {[%clk 0:01:02]} 20. Qf5 {[%clk 0:01:38.8]} 20... Nxf3+ {[%clk
0:01:02]} 21. Kg2 {[%clk 0:01:39]} 21... Ne5 {[%clk 0:00:57]} 22. exd4 {[%clk
0:01:37.4]} 22... Ng6 {[%clk 0:00:54]} 23. d5 {[%clk 0:01:16.7]} 23... Nxf4+
{[%clk 0:00:51.4]} 24. Qxf4 {[%clk 0:01:17.6]} 24... Nd3 {[%clk 0:00:44.5]} 0-1

[Event "Late-Titled-Tuesday-Blitz-June-25-2024"]
[Site "Chess.com"]
[Date "2024.06.25"]
[Round "8"]
[White "Tonychess32"]
[Black "SaraBlackPanther"]
[Result "0-1"]
[WhiteElo "2553"]
[BlackElo "2740"]
[TimeControl "180+1"]
[EndTime "15:24:48 PDT"]
[Termination "SaraBlackPanther won by resignation"]

1. e4 {[%clk 0:03:00.9]} 1... c5 {[%clk 0:02:53.2]} 2. Nf3 {[%clk 0:03:00.4]}
2... g6 {[%clk 0:02:53.3]} 3. c3 {[%clk 0:02:55.9]} 3... d5 {[%clk 0:02:50]} 4.
exd5 {[%clk 0:02:55.1]} 4... Qxd5 {[%clk 0:02:50.9]} 5. d4 {[%clk 0:02:55.6]}
5... Bg7 {[%clk 0:02:47.9]} 6. Be2 {[%clk 0:02:54.3]} 6... Nc6 {[%clk
0:02:45.5]} 7. Be3 {[%clk 0:02:48.3]} 7... cxd4 {[%clk 0:02:43.5]} 8. cxd4
{[%clk 0:02:48.4]} 8... Nf6 {[%clk 0:02:43.6]} 9. Nc3 {[%clk 0:02:48.7]} 9...
Qa5 {[%clk 0:02:39.2]} 10. O-O {[%clk 0:02:44.5]} 10... O-O {[%clk 0:02:37.4]}
11. h3 {[%clk 0:02:28.8]} 11... Rd8 {[%clk 0:02:30.1]} 12. Qc1 {[%clk
0:01:43.9]} 12... Bf5 {[%clk 0:02:18.9]} 13. a3 {[%clk 0:01:42.8]} 13... Rac8
{[%clk 0:02:15.5]} 14. b4 {[%clk 0:01:28.4]} 14... Qc7 {[%clk 0:02:13.4]} 15.
Nb5 {[%clk 0:01:00.1]} 15... Qd7 {[%clk 0:02:09.8]} 16. Qb2 {[%clk 0:00:58.4]}
16... Nd5 {[%clk 0:02:06.5]} 17. Rac1 {[%clk 0:00:56.4]} 17... Nxe3 {[%clk
0:01:56.3]} 18. fxe3 {[%clk 0:00:56.7]} 18... Bh6 {[%clk 0:01:56.7]} 19. Qb3
{[%clk 0:00:49.2]} 19... a6 {[%clk 0:01:46.7]} 20. Nc3 {[%clk 0:00:48]} 20...
Bxe3+ {[%clk 0:01:44.3]} 21. Kh1 {[%clk 0:00:48.2]} 21... Bxc1 {[%clk
0:01:44.8]} 22. Rxc1 {[%clk 0:00:47]} 22... Nxd4 {[%clk 0:01:45.1]} 23. Nxd4
{[%clk 0:00:39.1]} 23... Qxd4 {[%clk 0:01:46]} 24. Rd1 {[%clk 0:00:31.7]} 24...
Qe5 {[%clk 0:01:43.2]} 25. Rxd8+ {[%clk 0:00:29.1]} 25... Rxd8 {[%clk 0:01:44]}
26. Bf3 {[%clk 0:00:29.6]} 26... Rd3 {[%clk 0:01:41.6]} 27. Qd5 {[%clk 0:00:27]}
27... Rxd5 {[%clk 0:01:39.8]} 0-1

[Event "Late-Titled-Tuesday-Blitz-June-25-2024"]
[Site "Chess.com"]
[Date "2024.06.25"]
[Round "8"]
[White "Boundless_Strike"]
[Black "Viktoker"]
[Result "0-1"]
[WhiteElo "2718"]
[BlackElo "2529"]
[TimeControl "180+1"]
[EndTime "15:25:05 PDT"]
[Termination "Viktoker won on time"]

1. d4 {[%clk 0:00:28.1]} 1... f5 {[%clk 0:02:56.3]} 2. e4 {[%clk 0:00:27.8]}
2... fxe4 {[%clk 0:02:56.1]} 3. Nc3 {[%clk 0:00:28.5]} 3... Nf6 {[%clk
0:02:56.4]} 4. Bg5 {[%clk 0:00:28.9]} 4... g6 {[%clk 0:02:56.9]} 5. f3 {[%clk
0:00:28.9]} 5... d5 {[%clk 0:02:56.5]} 6. fxe4 {[%clk 0:00:29.1]} 6... Nxe4
{[%clk 0:02:57.4]} 7. Nxe4 {[%clk 0:00:28.9]} 7... dxe4 {[%clk 0:02:58.3]} 8.
Bc4 {[%clk 0:00:29.6]} 8... Nc6 {[%clk 0:02:58.6]} 9. c3 {[%clk 0:00:29.8]} 9...
Bg7 {[%clk 0:02:38.8]} 10. a4 {[%clk 0:00:11.1]} 10... Qd6 {[%clk 0:02:32.8]}
11. Qe2 {[%clk 0:00:10.7]} 11... Be6 {[%clk 0:02:30.8]} 12. Nh3 {[%clk
0:00:04.2]} 12... O-O {[%clk 0:02:17.7]} 13. Nf4 {[%clk 0:00:02.2]} 13... Bxc4
{[%clk 0:02:16.7]} 14. Qxc4+ {[%clk 0:00:02.1]} 14... Kh8 {[%clk 0:02:16.8]} 15.
O-O {[%clk 0:00:01.7]} 15... e5 {[%clk 0:02:16.6]} 16. dxe5 {[%clk 0:00:01.7]}
16... Nxe5 {[%clk 0:02:17.5]} 17. Qxe4 {[%clk 0:00:02.4]} 17... Rae8 {[%clk
0:02:14.8]} 18. Rae1 {[%clk 0:00:02.4]} 18... Qb6+ {[%clk 0:02:14.7]} 19. Kh1
{[%clk 0:00:02.5]} 19... h6 {[%clk 0:01:49]} 20. Nd5 {[%clk 0:00:02.1]} 20...
Qc6 {[%clk 0:01:44]} 21. Bf4 {[%clk 0:00:02.2]} 21... Ng4 {[%clk 0:01:41.5]} 22.
Qxe8 {[%clk 0:00:02.4]} 22... Rxe8 {[%clk 0:01:41.8]} 23. Rxe8+ {[%clk
0:00:03.1]} 23... Qxe8 {[%clk 0:01:42.7]} 24. Bg3 {[%clk 0:00:02.1]} 24... Qe2
{[%clk 0:01:42.5]} 0-1

[Event "Late-Titled-Tuesday-Blitz-June-25-2024"]
[Site "Chess.com"]
[Date "2024.06.25"]
[Round "8"]
[White "N_I_Chess"]
[Black "PNEPaul"]
[Result "1-0"]
[WhiteElo "2258"]
[BlackElo "1952"]
[TimeControl "180+1"]
[EndTime "15:25:06 PDT"]
[Termination "N_I_Chess won by resignation"]

1. d4 {[%clk 0:02:15.1]} 1... a6 {[%clk 0:02:58.8]} 2. c4 {[%clk 0:02:14.7]}
2... d6 {[%clk 0:02:58.8]} 3. e4 {[%clk 0:02:15.2]} 3... g6 {[%clk 0:02:59]} 4.
Nc3 {[%clk 0:02:14.9]} 4... h6 {[%clk 0:02:59.1]} 5. f4 {[%clk 0:02:15.3]} 5...
Bg7 {[%clk 0:02:58.9]} 6. Nf3 {[%clk 0:02:12.8]} 6... Nd7 {[%clk 0:02:58.7]} 7.
Bd3 {[%clk 0:02:12.7]} 7... e6 {[%clk 0:02:58.8]} 8. O-O {[%clk 0:02:12.3]} 8...
Ne7 {[%clk 0:02:57.9]} 9. Kh1 {[%clk 0:02:12.9]} 9... O-O {[%clk 0:02:54.7]} 10.
Be3 {[%clk 0:02:11.9]} 10... b6 {[%clk 0:02:53.9]} 11. Qd2 {[%clk 0:02:11.5]}
11... Kh7 {[%clk 0:02:52.5]} 12. h3 {[%clk 0:02:10]} 12... Bb7 {[%clk 0:02:52]}
13. Rae1 {[%clk 0:02:07.1]} 13... Nf6 {[%clk 0:02:51.7]} 14. Kh2 {[%clk
0:02:03.9]} 14... d5 {[%clk 0:02:42.2]} 15. cxd5 {[%clk 0:02:03.4]} 15... exd5
{[%clk 0:02:40.8]} 16. e5 {[%clk 0:02:03.8]} 16... Ne4 {[%clk 0:02:40.6]} 17.
Qe2 {[%clk 0:01:58.4]} 17... Nxc3 {[%clk 0:02:31.4]} 18. bxc3 {[%clk 0:01:57.1]}
18... c5 {[%clk 0:02:31.1]} 19. g4 {[%clk 0:01:51.4]} 19... f5 {[%clk 0:02:05]}
20. exf6 {[%clk 0:01:48.8]} 20... Bxf6 {[%clk 0:02:04]} 21. Ne5 {[%clk
0:01:48.9]} 21... Bxe5 {[%clk 0:01:59.3]} 22. fxe5 {[%clk 0:01:49]} 22... Nc6
{[%clk 0:01:39.8]} 23. g5 {[%clk 0:01:40.9]} 23... Qe7 {[%clk 0:01:10.2]} 24.
Rf6 {[%clk 0:01:21.3]} 24... Nxe5 {[%clk 0:01:08.9]} 25. dxe5 {[%clk 0:01:15.9]}
25... Qxe5+ {[%clk 0:01:08.4]} 26. Bf4 {[%clk 0:01:14.9]} 26... Qxe2+ {[%clk
0:01:01.2]} 27. Rxe2 {[%clk 0:01:14.3]} 27... Rxf6 {[%clk 0:00:57.2]} 28. Re7+
{[%clk 0:01:10.8]} 28... Kg8 {[%clk 0:00:51.9]} 29. gxf6 {[%clk 0:01:11]} 1-0

[Event "Late-Titled-Tuesday-Blitz-June-25-2024"]
[Site "Chess.com"]
[Date "2024.06.25"]
[Round "8"]
[White "Juliana_Figueira"]
[Black "LidongW"]
[Result "0-1"]
[WhiteElo "1990"]
[BlackElo "2341"]
[TimeControl "180+1"]
[EndTime "15:25:17 PDT"]
[Termination "LidongW won by resignation"]

1. d4 {[%clk 0:02:58]} 1... Nf6 {[%clk 0:02:59.7]} 2. c4 {[%clk 0:02:58.2]} 2...
c5 {[%clk 0:03:00.2]} 3. d5 {[%clk 0:02:58.1]} 3... d6 {[%clk 0:03:00.9]} 4. Nc3
{[%clk 0:02:57.8]} 4... g6 {[%clk 0:03:01.4]} 5. e4 {[%clk 0:02:58.1]} 5... Bg7
{[%clk 0:03:01.9]} 6. f4 {[%clk 0:02:54.3]} 6... O-O {[%clk 0:03:02.1]} 7. Nf3
{[%clk 0:02:54.1]} 7... e6 {[%clk 0:03:02.5]} 8. Bd3 {[%clk 0:02:43.8]} 8...
exd5 {[%clk 0:03:02.6]} 9. cxd5 {[%clk 0:02:42.3]} 9... Re8 {[%clk 0:03:03.2]}
10. O-O {[%clk 0:02:42.3]} 10... Bg4 {[%clk 0:02:59.7]} 11. h3 {[%clk 0:02:42]}
11... Bxf3 {[%clk 0:02:58.9]} 12. Qxf3 {[%clk 0:02:42.6]} 12... a6 {[%clk
0:02:59.5]} 13. a4 {[%clk 0:02:42.3]} 13... Nbd7 {[%clk 0:02:58.6]} 14. a5
{[%clk 0:02:36.7]} 14... b5 {[%clk 0:02:53.6]} 15. axb6 {[%clk 0:02:35.6]} 15...
Qxb6 {[%clk 0:02:52.3]} 16. Na4 {[%clk 0:02:33.9]} 16... Qb4 {[%clk 0:02:50.1]}
17. Nc3 {[%clk 0:02:27]} 17... Qd4+ {[%clk 0:02:01.4]} 18. Kh2 {[%clk
0:02:20.3]} 18... c4 {[%clk 0:02:01.6]} 19. Bc2 {[%clk 0:02:17.1]} 19... Qb6
{[%clk 0:01:54.2]} 20. Be3 {[%clk 0:02:14.1]} 20... Qxb2 {[%clk 0:01:53.3]} 21.
Bd4 {[%clk 0:01:20.7]} 21... Qxc2 {[%clk 0:01:50.7]} 22. Rfc1 {[%clk 0:01:20.3]}
22... Qd3 {[%clk 0:01:48.7]} 23. Qf2 {[%clk 0:01:17.8]} 23... Nxe4 {[%clk
0:01:44.5]} 24. Nxe4 {[%clk 0:01:11.2]} 24... Bxd4 {[%clk 0:01:38.5]} 25. Rd1
{[%clk 0:00:54]} 25... Bxf2 {[%clk 0:01:33.6]} 26. Rxd3 {[%clk 0:00:52]} 26...
Rxe4 {[%clk 0:01:29]} 27. Rda3 {[%clk 0:00:46.7]} 27... Nc5 {[%clk 0:01:28.3]}
28. R3a2 {[%clk 0:00:40.1]} 28... Bd4 {[%clk 0:01:23.4]} 29. Rc1 {[%clk
0:00:33.7]} 29... Be3 {[%clk 0:01:20.1]} 30. Rca1 {[%clk 0:00:29.9]} 30... Bxf4+
{[%clk 0:01:20.2]} 31. g3 {[%clk 0:00:28.3]} 31... Be5 {[%clk 0:01:20.7]} 0-1